bitfinex-derivatives/quotes_SOLF0:USTF0_20260213
["timestamp","ask_amount","ask_price","bid_price","bid_amount"]
[1770994739179,11.082,81.266,81.213,27.88183251]
[1770994739377,9.37528171,81.29,81.213,27.88183251]
[1770994739378,28.74853456,81.288,81.213,27.88183251]
[1770994740082,28.74853456,81.288,81.2,9.37528171]
[1770994740083,11.0794,81.285,81.232,27.88183251]
[1770994740280,28.74853456,81.309,81.232,27.88183251]
[1770994740781,11.0766,81.305,81.246,11.0846]
[1770994740981,27.9245902,81.329,81.247,27.55131507]
[1770994741283,27.9245902,81.309,81.231,27.55131507]
[1770994741585,27.9245902,81.289,81.231,27.55131507]
[1770994741776,27.9245902,81.289,81.201,27.55131507]
[1770994741975,11.0806,81.276,81.231,27.55131507]
[1770994742378,27.9245902,81.289,81.201,27.55131507]
[1770994742574,11.0818,81.267,81.213,11.089]
[1770994742773,27.9245902,81.269,81.201,27.55131507]
[1770994742973,27.9245902,81.249,81.184,27.55131507]
[1770994743681,11.0846,81.246,81.188,11.0925]
[1770994744391,11.0856,81.239,81.188,38.64381507]
[1770994744577,27.9245902,81.249,81.17,27.55131507]
[1770994744778,11.087,81.229,81.17,27.55131507]
[1770994745286,11.087,81.229,81.14,9.34398323]
[1770994745287,27.9245902,81.229,81.142,27.55131507]
[1770994745486,9.34398323,81.23,81.142,27.55131507]
[1770994745487,27.9245902,81.216,81.142,27.55131507]
[1770994745680,27.9245902,81.229,81.168,11.0953]
[1770994745882,27.9245902,81.229,81.163,27.55131507]
[1770994746279,27.9245902,81.21,81.146,27.55131507]
[1770994747280,9.34398323,81.23,81.163,27.55131507]
[1770994747588,27.9245902,81.245,81.163,27.55131507]
[1770994747791,27.9245902,81.237,81.178,11.0938]
[1770994748185,9.34398323,81.23,81.163,27.55131507]
[1770994748390,9.34398323,81.25,81.177,27.55131507]
[1770994748691,27.9245902,81.249,81.177,27.55131507]
[1770994749392,27.9245902,81.229,81.141,27.55131507]
[1770994750180,11.0872,81.227,81.169,38.64641507]
[1770994750392,11.0872,81.227,81.17,27.55131507]
[1770994750689,9.34398323,81.24,81.17,27.55131507]
[1770994750889,27.9245902,81.237,81.181,27.55131507]
[1770994751396,9.34398323,81.24,81.14,195.48]
[1770994751397,27.9245902,81.216,81.162,27.55131507]
[1770994751788,27.9245902,81.207,81.141,27.55131507]
[1770994752580,11.0914,81.197,81.142,11.0987]
[1770994753093,11.0914,81.197,81.142,38.65001507]
[1770994753690,27.9245902,81.191,81.125,27.55131507]
[1770994755394,9.34398323,81.2,81.135,27.55131507]
[1770994755593,37.26857343,81.2,81.135,27.55131507]
[1770994755891,27.9245902,81.218,81.135,27.55131507]
[1770994756294,27.9245902,81.235,81.143,27.55131507]
[1770994756498,27.9245902,81.252,81.167,27.55131507]
[1770994756991,37.26857343,81.24,81.18,11.0935]
[1770994757193,27.9245902,81.239,81.167,27.55131507]
[1770994757589,194.4864,81.293,81.188,27.55131507]
[1770994757590,11.0852,81.243,81.188,27.55131507]
[1770994757791,27.9245902,81.257,81.169,27.55131507]
[1770994757991,27.9245902,81.239,81.169,27.55131507]
[1770994758999,27.9245902,81.22,81.16,11.0964]
[1770994759410,27.9245902,81.22,81.151,27.55131507]
[1770994759612,158.7,81.259,81.151,27.55131507]
[1770994759806,27.9245902,81.239,81.151,27.55131507]
[1770994760413,11.0867,81.231,81.173,11.0945]
[1770994760712,39.0112902,81.231,81.173,11.0945]
[1770994761103,9.34398323,81.24,81.183,27.55131507]
[1770994761502,9.34398323,81.24,81.187,11.0927]
[1770994762004,27.9245902,81.251,81.196,38.64271507]
[1770994762311,15.27037996,81.332,81.17,9.34398323]
[1770994762312,27.9245902,81.269,81.197,27.55131507]
[1770994762698,27.9245902,81.269,81.17,9.34398323]
[1770994762699,27.9245902,81.269,81.209,27.55131507]
[1770994763309,27.9245902,81.269,81.178,195.2]
[1770994763310,27.9245902,81.269,81.191,27.55131507]
[1770994764306,27.9245902,81.269,81.21,27.55131507]
[1770994765004,27.9245902,81.261,81.191,27.55131507]
[1770994765613,11.0845,81.247,81.196,11.0914]
[1770994766004,27.9245902,81.259,81.191,27.55131507]
[1770994766504,9.34398323,81.26,81.191,27.55131507]
[1770994766705,27.9245902,81.259,81.191,27.55131507]
[1770994767014,11.0833,81.256,81.207,11.0899]
[1770994767204,27.9245902,81.259,81.207,11.0899]
[1770994767406,27.9245902,81.277,81.191,27.55131507]
[1770994767612,11.0822,81.264,81.214,11.0889]
[1770994767808,11.0822,81.264,81.215,27.55131507]
[1770994768111,27.9245902,81.277,81.197,27.55131507]
[1770994768313,27.9245902,81.257,81.197,27.55131507]
[1770994768509,27.9245902,81.275,81.197,27.55131507]
[1770994768702,11.081,81.273,81.217,27.55131507]
[1770994768906,27.9245902,81.275,81.217,27.55131507]
[1770994769309,11.0819,81.267,81.217,38.63991507]
[1770994769512,27.9245902,81.275,81.217,27.55131507]
[1770994769907,11.0827,81.26,81.217,27.55131507]
[1770994770310,11.0827,81.26,81.207,11.0898]
[1770994771119,11.0837,81.254,81.207,11.0898]
[1770994771810,11.0845,81.247,81.199,38.64231507]
[1770994772021,28.30406285,81.246,81.18,28.61699437]
[1770994773118,11.0865,81.232,81.18,28.61699437]
[1770994773321,28.30406285,81.26,81.18,28.61699437]
[1770994773617,28.30406285,81.26,81.182,28.61699437]
[1770994773915,11.0839,81.251,81.2,28.61699437]
[1770994774514,28.30406285,81.26,81.2,28.61699437]
[1770994774515,11.0853,81.242,81.2,28.61699437]
[1770994774822,28.30406285,81.259,81.165,28.61699437]
[1770994775118,28.30406285,81.259,81.195,28.61699437]
[1770994775514,28.30406285,81.259,81.168,28.61699437]
[1770994775714,11.0854,81.241,81.184,28.61699437]
[1770994776115,11.0842,81.249,81.201,11.0907]
[1770994776417,28.30406285,81.259,81.184,28.61699437]
[1770994777514,11.0838,81.253,81.203,28.42990214]
[1770994777714,27.36165601,81.278,81.203,28.42990214]
[1770994778120,11.0822,81.264,81.21,11.0895]
[1770994778311,27.36165601,81.278,81.203,28.42990214]
[1770994778712,11.0821,81.265,81.215,11.0888]
[1770994779509,11.0821,81.265,81.215,39.51870214]
[1770994779710,22.1552,81.298,81.224,28.42990214]
[1770994779711,11.0811,81.272,81.224,28.42990214]
[1770994780312,11.082,81.266,81.224,28.42990214]
[1770994780512,27.36165601,81.279,81.206,28.42990214]
[1770994781023,27.36165601,81.279,81.208,28.42990214]
[1770994781618,27.36165601,81.279,81.222,11.0879]
[1770994782524,11.0821,81.265,81.216,28.42990214]
[1770994783415,11.0832,81.257,81.21,11.0895]
[1770994783617,27.36165601,81.263,81.21,11.0895]
[1770994783912,27.36165601,81.263,81.197,28.42990214]
[1770994784513,27.36165601,81.289,81.197,28.42990214]
[1770994784718,27.36165601,81.289,81.201,28.42990214]
[1770994785318,27.36165601,81.272,81.201,28.42990214]
[1770994785528,27.36165601,81.289,81.202,28.42990214]
[1770994786118,11.0819,81.266,81.202,28.42990214]
[1770994786319,27.36165601,81.289,81.204,28.42990214]
[1770994786913,27.36165601,81.289,81.209,28.42990214]
[1770994787518,27.36165601,81.289,81.222,11.0878]
[1770994787814,27.36165601,81.289,81.21,28.42990214]
[1770994788416,11.0816,81.268,81.221,11.088]
[1770994789018,27.36165601,81.289,81.21,28.42990214]
[1770994789221,27.36165601,81.304,81.214,28.42990214]
[1770994789718,27.36165601,81.304,81.24,28.42990214]
[1770994789918,27.36165601,81.337,81.24,28.42990214]
[1770994790115,11.0777,81.297,81.252,11.0838]
[1770994790325,11.0777,81.297,81.24,28.42990214]
[1770994790529,27.36165601,81.311,81.24,28.42990214]
[1770994790829,27.36165601,81.311,81.264,11.082]
[1770994791317,27.36165601,81.329,81.265,28.42990214]
[1770994791725,11.0736,81.327,81.265,28.42990214]
[1770994791924,27.36165601,81.326,81.277,11.0803]
[1770994792129,27.36165601,81.326,81.265,28.42990214]
[1770994792921,27.36165601,81.349,81.265,28.42990214]
[1770994793224,27.36165601,81.349,81.26,9.34398323]
[1770994793225,27.36165601,81.349,81.291,28.42990214]
[1770994793425,11.0709,81.347,81.291,28.42990214]
[1770994793628,27.36165601,81.349,81.274,28.42990214]
[1770994793930,11.0709,81.347,81.281,28.42990214]
[1770994794117,11.0709,81.347,81.256,194.22]
[1770994794118,27.36165601,81.346,81.264,28.42990214]
[1770994794421,27.36165601,81.346,81.226,22.1745]
[1770994794422,27.36165601,81.329,81.246,28.42990214]
[1770994794630,27.36165601,81.311,81.246,28.42990214]
[1770994795118,11.0765,81.306,81.248,28.42990214]
[1770994795319,27.36165601,81.329,81.248,28.42990214]
[1770994796130,11.0754,81.314,81.262,11.0824]
[1770994796431,11.0754,81.314,81.263,28.42990214]
[1770994796820,11.0754,81.314,81.265,28.42990214]
[1770994797022,11.0742,81.323,81.265,28.42990214]
[1770994797223,27.36165601,81.329,81.265,28.42990214]
[1770994797529,27.36165601,81.329,81.249,28.42990214]
[1770994798225,27.36165601,81.309,81.24,37.77388537]
[1770994798522,11.0755,81.313,81.241,28.42990214]
[1770994798924,36.70563924,81.33,81.241,28.42990214]
[1770994799127,27.36165601,81.33,81.241,28.42990214]
[1770994799322,27.36165601,81.33,81.24,9.34398323]
[1770994799323,27.36165601,81.33,81.279,28.42990214]
[1770994799924,27.36165601,81.33,81.28,39.50980214]
[1770994800127,22.1357,81.37,81.281,28.42990214]
[1770994800128,27.36165601,81.345,81.281,28.42990214]
[1770994800328,27.36165601,81.369,81.281,28.42990214]
[1770994800533,27.36165601,81.369,81.303,28.42990214]
[1770994800829,26.83601588,81.382,81.303,28.42990214]
[1770994801030,26.83601588,81.382,81.3,9.34398323]
[1770994801031,26.83601588,81.382,81.301,26.25342017]
[1770994801233,26.83601588,81.401,81.321,26.25342017]
[1770994801423,26.83601588,81.409,81.349,11.0705]
[1770994801625,26.83601588,81.419,81.343,26.25342017]
[1770994801825,2.1385905,81.434,81.343,26.25342017]
[1770994802133,171.9161,81.488,81.33,194.44]
[1770994802134,26.83601588,81.49,81.381,26.25342017]
[1770994802326,26.83601588,81.49,81.401,26.25342017]
[1770994802530,26.83601588,81.49,81.426,26.25342017]
[1770994802726,26.83601588,81.49,81.388,194.46]
[1770994802727,26.83601588,81.489,81.401,26.25342017]
[1770994803136,26.83601588,81.499,81.426,26.25342017]
[1770994803334,26.83601588,81.499,81.421,26.25342017]
[1770994803837,26.83601588,81.479,81.37,9.30682679]
[1770994804030,26.83601588,81.459,81.363,26.25342017]
[1770994804234,26.83601588,81.439,81.363,26.25342017]
[1770994804431,3.0720723,81.475,81.34,26.25342017]
[1770994804432,26.83601588,81.419,81.34,26.25342017]
[1770994804631,26.83601588,81.399,81.32,26.25342017]
[1770994804938,26.83601588,81.399,81.31,9.30682679]
[1770994804939,26.83601588,81.421,81.351,26.25342017]
[1770994805140,9.30682679,81.44,81.351,26.25342017]
[1770994805331,26.83601588,81.436,81.354,26.25342017]
[1770994805938,26.83601588,81.436,81.356,26.25342017]
[1770994806239,26.83601588,81.436,81.311,172.2888]
[1770994806240,26.83601588,81.478,81.391,26.25342017]
[1770994806444,26.83601588,81.475,81.397,26.25342017]
[1770994806632,26.83601588,81.469,81.371,26.25342017]
[1770994806833,11.0592,81.433,81.371,26.25342017]
[1770994807033,26.83601588,81.441,81.371,26.25342017]
[1770994807238,26.83601588,81.489,81.391,26.25342017]
[1770994807433,26.83601588,81.451,81.37,9.30682679]
[1770994807638,26.83601588,81.449,81.371,26.25342017]
[1770994808044,26.83601588,81.434,81.371,26.25342017]
[1770994808234,26.83601588,81.434,81.351,26.25342017]
[1770994808441,26.83601588,81.434,81.335,194.04]
[1770994808442,26.83601588,81.434,81.371,26.25342017]
[1770994808645,9.30682679,81.47,81.371,26.25342017]
[1770994808948,26.83601588,81.469,81.371,26.25342017]
[1770994809242,26.83601588,81.441,81.371,26.25342017]
[1770994809941,26.83601588,81.461,81.391,26.25342017]
[1770994810341,26.83601588,81.458,81.391,26.25342017]
[1770994810842,26.83601588,81.436,81.362,11.0688]
[1770994811044,26.83601588,81.436,81.36,9.30682679]
[1770994811349,11.0603,81.425,81.361,26.25342017]
[1770994811543,26.83601588,81.436,81.361,26.25342017]
[1770994811737,26.83601588,81.419,81.283,22.1591]
[1770994811936,11.0618,81.414,81.339,26.25342017]
[1770994812141,26.83601588,81.413,81.339,26.25342017]
[1770994812337,26.83601588,81.439,81.351,26.25342017]
[1770994812744,26.83601588,81.439,81.331,26.25342017]
[1770994812943,26.83601588,81.419,81.331,26.25342017]
[1770994813342,26.83601588,81.401,81.332,11.0728]
[1770994813744,9.30682679,81.4,81.311,26.25342017]
[1770994814046,11.0668,81.378,81.311,26.25342017]
[1770994814344,26.83601588,81.399,81.311,26.25342017]
[1770994814642,11.0666,81.379,81.312,11.0756]
[1770994814947,26.83601588,81.399,81.313,26.25342017]
[1770994815642,9.30682679,81.42,81.331,26.25342017]
[1770994816037,9.30682679,81.44,81.366,11.0682]
[1770994816249,9.30682679,81.44,81.351,26.25342017]
[1770994816250,26.83601588,81.443,81.371,26.25342017]
[1770994816546,9.30682679,81.46,81.371,26.25342017]
[1770994816845,26.83601588,81.511,81.411,26.25342017]
[1770994817049,26.83601588,81.511,81.431,26.25342017]
[1770994817550,26.83601588,81.509,81.431,26.25342017]
[1770994817847,26.83601588,81.509,81.432,26.25342017]
[1770994818243,26.83601588,81.494,81.411,26.25342017]
[1770994818752,26.83601588,81.515,81.432,26.25342017]
[1770994819247,37.88791588,81.487,81.417,11.0613]
[1770994819446,26.83601588,81.486,81.41,26.25342017]
[1770994819750,26.83601588,81.509,81.421,26.25342017]
[1770994820250,11.0521,81.486,81.425,11.0601]
[1770994820439,11.0521,81.486,81.421,26.25342017]
[1770994820748,156.5,81.52,81.369,172.1658]
[1770994820749,26.83601588,81.489,81.4,9.30682679]
[1770994820944,26.83601588,81.468,81.397,26.25342017]
[1770994821450,26.83601588,81.476,81.409,26.25342017]
[1770994821745,26.83601588,81.476,81.39,9.30682679]
[1770994821746,26.83601588,81.497,81.411,26.25342017]
[1770994821955,171.7351,81.574,81.41,9.30682679]
[1770994821956,26.83601588,81.544,81.451,26.25342017]
[1770994822141,26.83601588,81.539,81.451,26.25342017]
[1770994822346,26.83601588,81.498,81.43,9.30682679]
[1770994822548,26.83601588,81.498,81.41,9.30682679]
[1770994823064,11.0543,81.469,81.41,20.36902679]
[1770994823247,26.83601588,81.498,81.411,26.25342017]
[1770994823450,26.83601588,81.479,81.411,26.25342017]
[1770994823842,26.83601588,81.479,81.422,11.0607]
[1770994824157,26.83601588,81.479,81.411,26.25342017]
[1770994824342,11.0533,81.477,81.411,37.31552017]
[1770994824543,11.0533,81.477,81.412,26.25342017]
[1770994824853,11.0533,81.477,81.36,172.1856]
[1770994824854,26.83601588,81.476,81.391,26.25342017]
[1770994825549,26.83601588,81.445,81.371,26.25342017]
[1770994825754,26.83601588,81.439,81.371,26.25342017]
[1770994826158,26.83601588,81.439,81.312,22.1512]
[1770994826159,26.83601588,81.439,81.351,26.25342017]
[1770994826348,26.83601588,81.439,81.361,26.25342017]
[1770994826544,26.83601588,81.439,81.369,11.0678]
[1770994826745,26.83601588,81.439,81.361,26.25342017]
[1770994827462,11.0586,81.438,81.372,26.25342017]
[1770994827657,22.1078,81.473,81.36,9.30682679]
[1770994827658,26.83601588,81.479,81.401,26.25342017]
[1770994828151,171.8516,81.519,81.401,26.25342017]
[1770994828152,26.83601588,81.469,81.401,26.25342017]
[1770994828552,26.83601588,81.489,81.401,26.25342017]
[1770994828749,156.62,81.505,81.403,26.25342017]
[1770994828750,26.83601588,81.469,81.403,26.25342017]
[1770994829253,26.83601588,81.45,81.381,26.25342017]
[1770994829454,9.30682679,81.47,81.381,26.25342017]
[1770994829660,26.83601588,81.469,81.381,26.25342017]
[1770994830062,26.83601588,81.449,81.337,26.25342017]
[1770994830249,26.83601588,81.469,81.381,26.25342017]
[1770994830655,26.83601588,81.469,81.392,26.25342017]
[1770994831064,25.62560602,81.49,81.429,11.0596]
[1770994831257,25.62560602,81.479,81.401,27.63521907]
[1770994831456,25.62560602,81.459,81.38,27.63521907]
[1770994831751,11.0595,81.431,81.365,11.0683]
[1770994831954,9.30682679,81.45,81.361,27.63521907]
[1770994832158,25.62560602,81.449,81.361,27.63521907]
[1770994832664,25.62560602,81.449,81.325,172.26]
[1770994832665,25.62560602,81.429,81.352,27.63521907]
[1770994833052,22.1129,81.454,81.342,11.0715]
[1770994833053,11.0636,81.401,81.342,11.0715]
[1770994833458,11.0636,81.401,81.32,9.30682679]
[1770994833459,9.30682679,81.39,81.3,9.30682679]
[1770994833665,25.62560602,81.376,81.301,27.63521907]
[1770994834362,25.62560602,81.376,81.249,36.98]
[1770994834363,25.62560602,81.369,81.281,27.63521907]
[1770994834957,25.62560602,81.369,81.302,27.63521907]
[1770994835160,25.62560602,81.413,81.302,27.63521907]
[1770994835358,11.0623,81.41,81.352,11.0701]
[1770994835565,25.62560602,81.413,81.341,27.63521907]
[1770994836067,25.62560602,81.413,81.32,36.94204586]
[1770994836366,25.62560602,81.399,81.32,36.94204586]
[1770994836662,11.0662,81.382,81.32,36.94204586]
[1770994836866,25.62560602,81.399,81.321,27.25047995]
[1770994837268,25.92914018,81.379,81.301,27.25047995]
[1770994837464,25.92914018,81.379,81.28,36.55730674]
[1770994837669,25.92914018,81.359,81.28,36.55730674]
[1770994837865,25.92914018,81.359,81.281,27.25047995]
[1770994838074,25.92914018,81.359,81.26,27.25047995]
[1770994838467,11.072,81.339,81.269,38.33187995]
[1770994838668,11.072,81.339,81.269,27.25047995]
[1770994838865,25.92914018,81.359,81.271,27.25047995]
[1770994839661,35.23596697,81.38,81.299,27.25047995]
[1770994839967,25.92914018,81.379,81.299,27.25047995]
[1770994840666,172.0734,81.414,81.27,9.30682679]
[1770994840667,11.0657,81.386,81.322,11.0742]
[1770994840864,25.92914018,81.395,81.301,27.25047995]
[1770994841469,25.92914018,81.395,81.311,27.25047995]
[1770994841770,25.92914018,81.395,81.273,172.3688]
[1770994841771,25.92914018,81.395,81.321,27.25047995]
[1770994842374,11.0662,81.382,81.321,27.25047995]
[1770994842574,25.92914018,81.395,81.301,27.25047995]
[1770994842775,25.92914018,81.379,81.301,27.25047995]
[1770994843573,25.92914018,81.379,81.306,27.25047995]
[1770994844375,9.30682679,81.38,81.306,27.25047995]
[1770994844376,36.99684018,81.371,81.306,27.25047995]
[1770994844676,9.30682679,81.38,81.306,27.25047995]
[1770994844873,11.0666,81.379,81.315,11.0751]
[1770994845072,25.92914018,81.378,81.306,27.25047995]
[1770994845667,25.92914018,81.398,81.321,27.25047995]
[1770994846471,25.92914018,81.398,81.339,11.0719]
[1770994846684,25.92914018,81.419,81.34,27.25047995]
[1770994847083,11.0644,81.395,81.34,27.25047995]
[1770994847877,25.92914018,81.419,81.34,27.25047995]
[1770994848086,9.30682679,81.44,81.361,27.25047995]
[1770994848273,25.92914018,81.441,81.361,27.25047995]
[1770994848472,25.92914018,81.462,81.381,27.25047995]
[1770994848786,9.30682679,81.48,81.401,27.25047995]
[1770994848982,9.30682679,81.5,81.421,27.25047995]
[1770994849281,25.92914018,81.5,81.421,27.25047995]
[1770994849475,25.92914018,81.521,81.441,27.25047995]
[1770994849680,171.6849,81.598,81.441,27.25047995]
[1770994849681,25.92914018,81.519,81.441,27.25047995]
[1770994850280,25.92914018,81.519,81.42,9.30682679]
[1770994850483,25.92914018,81.519,81.421,27.25047995]
[1770994850684,25.92914018,81.519,81.441,27.25047995]
[1770994851180,25.92914018,81.519,81.443,27.25047995]
[1770994851777,11.0484,81.513,81.443,27.25047995]
[1770994851986,25.92914018,81.542,81.443,27.25047995]
[1770994852181,25.92914018,81.542,81.469,27.25047995]
[1770994852683,25.92914018,81.542,81.47,11.0541]
[1770994852887,9.30682679,81.53,81.469,27.25047995]
[1770994853084,9.30682679,81.55,81.469,27.25047995]
[1770994853283,25.92914018,81.549,81.469,27.25047995]
[1770994853483,156.82,81.581,81.469,27.25047995]
[1770994853484,9.30682679,81.56,81.469,27.25047995]
[1770994853790,25.92914018,81.57,81.481,27.25047995]
[1770994853791,25.92914018,81.569,81.481,27.25047995]
[1770994853983,25.92914018,81.589,81.501,27.25047995]
[1770994854384,25.92914018,81.589,81.5,9.30682679]
[1770994854385,25.92914018,81.559,81.479,27.25047995]
[1770994854689,9.30682679,81.59,81.458,27.25047995]
[1770994854690,25.92914018,81.537,81.458,27.25047995]
[1770994855291,11.046,81.53,81.458,27.25047995]
[1770994855483,25.92914018,81.53,81.458,27.25047995]
[1770994856185,9.30682679,81.54,81.461,27.25047995]
[1770994856582,11.0448,81.539,81.461,27.25047995]
[1770994856982,11.0484,81.513,81.43,9.30682679]
[1770994857192,25.92914018,81.518,81.431,27.25047995]
[1770994857592,11.0496,81.504,81.431,38.30987995]
[1770994857788,11.0496,81.504,81.432,27.25047995]
[1770994858591,11.0496,81.504,81.436,27.25047995]
[1770994859790,11.0496,81.504,81.435,11.0588]
[1770994859791,36.98014018,81.494,81.423,11.0604]
[1770994860091,9.30682679,81.5,81.354,22.1396]
[1770994860092,25.92914018,81.493,81.424,27.25047995]
[1770994860295,25.92914018,81.493,81.354,22.1396]
[1770994860296,35.23596697,81.52,81.431,27.25047995]
[1770994860483,25.92914018,81.519,81.431,27.25047995]
[1770994860885,11.0492,81.507,81.439,11.0583]
[1770994861100,25.92914018,81.519,81.44,26.22816223]
[1770994861484,25.06204584,81.497,81.416,26.22816223]
[1770994862793,25.06204584,81.497,81.417,26.22816223]
[1770994863384,11.0519,81.487,81.418,26.22816223]
[1770994863594,25.06204584,81.497,81.418,26.22816223]
[1770994863792,25.06204584,81.517,81.431,26.22816223]
[1770994863984,171.7556,81.565,81.452,26.22816223]
[1770994863985,25.06204584,81.537,81.452,26.22816223]
[1770994864290,25.06204584,81.559,81.491,26.22816223]
[1770994864495,11.0423,81.558,81.494,26.22816223]
[1770994865283,9.29006628,81.57,81.494,26.22816223]
[1770994865284,11.0409,81.568,81.494,26.22816223]
[1770994865497,25.06204584,81.569,81.494,26.22816223]
[1770994866087,155.68,81.6,81.496,26.22816223]
[1770994866088,25.06204584,81.562,81.496,26.22816223]
[1770994866783,25.06204584,81.562,81.474,26.22816223]
[1770994866990,25.06204584,81.562,81.412,172.0766]
[1770994866991,25.06204584,81.539,81.454,26.22816223]
[1770994867186,25.06204584,81.539,81.471,26.22816223]
[1770994867386,25.06204584,81.559,81.476,26.22816223]
[1770994867689,25.06204584,81.539,81.43,9.29006628]
[1770994867891,9.29006628,81.54,81.412,26.22816223]
[1770994867892,25.06204584,81.494,81.412,26.22816223]
[1770994868106,171.8202,81.534,81.412,26.22816223]
[1770994868107,25.06204584,81.479,81.412,26.22816223]
[1770994868296,25.06204584,81.509,81.412,26.22816223]
[1770994868600,11.0518,81.488,81.424,26.22816223]
[1770994868893,25.06204584,81.489,81.41,9.29006628]
[1770994869097,25.06204584,81.489,81.411,26.22816223]
[1770994869403,25.06204584,81.489,81.39,35.51822851]
[1770994869603,25.06204584,81.469,81.391,26.22816223]
[1770994869899,11.056,81.457,81.392,11.0646]
[1770994870195,25.06204584,81.469,81.391,26.22816223]
[1770994870590,11.0545,81.468,81.399,11.0637]
[1770994870793,25.06204584,81.467,81.399,11.0637]
[1770994871296,171.8659,81.512,81.37,26.22816223]
[1770994871297,25.06204584,81.449,81.37,26.22816223]
[1770994871597,25.06204584,81.449,81.347,26.22816223]
[1770994872193,25.06204584,81.423,81.35,11.0704]
[1770994872594,25.06204584,81.423,81.347,26.22816223]
[1770994872794,11.0635,81.401,81.347,26.22816223]
[1770994873100,25.06204584,81.423,81.347,26.22816223]
[1770994873393,11.0621,81.412,81.347,26.22816223]
[1770994873596,25.06204584,81.412,81.301,26.22816223]
[1770994873997,11.0659,81.384,81.316,26.22816223]
[1770994874394,25.06204584,81.409,81.316,26.22816223]
[1770994874896,11.0644,81.395,81.318,26.22816223]
[1770994875199,25.06204584,81.409,81.318,26.22816223]
[1770994875405,11.0694,81.358,81.318,26.22816223]
[1770994875596,11.0694,81.358,81.289,26.22816223]
[1770994875796,25.06204584,81.369,81.289,26.22816223]
[1770994876095,11.0691,81.36,81.293,26.22816223]
[1770994876505,11.0691,81.36,81.295,26.22816223]
[1770994876798,25.06204584,81.419,81.295,26.22816223]
[1770994877000,172.025,81.437,81.295,26.22816223]
[1770994877001,25.06204584,81.399,81.295,26.22816223]
[1770994877197,11.0674,81.373,81.301,26.22816223]
[1770994877398,25.06204584,81.399,81.301,26.22816223]
[1770994877597,35.64554435,81.4,81.301,26.22816223]
[1770994877598,25.06204584,81.397,81.301,26.22816223]
[1770994877803,11.0705,81.35,81.301,26.22816223]
[1770994877989,25.06204584,81.37,81.301,26.22816223]
[1770994878703,11.0689,81.362,81.301,26.22816223]
[1770994879491,11.0667,81.378,81.306,26.22816223]
[1770994879703,25.06204584,81.391,81.306,26.22816223]
[1770994880093,11.0687,81.363,81.306,26.22816223]
[1770994880298,25.06204584,81.391,81.306,26.22816223]
[1770994880503,25.06204584,81.389,81.286,26.22816223]
[1770994880698,11.0694,81.358,81.288,26.22816223]
[1770994881403,25.06204584,81.389,81.31,26.22816223]
[1770994881802,11.0689,81.362,81.31,26.22816223]
[1770994882002,25.06204584,81.389,81.31,26.22816223]
[1770994882196,25.06204584,81.389,81.281,26.22816223]
[1770994882593,11.0702,81.352,81.282,26.22816223]
[1770994883303,11.0702,81.352,81.285,26.22816223]
[1770994883603,25.06204584,81.363,81.264,26.22816223]
[1770994883803,25.06204584,81.363,81.266,26.22816223]
[1770994884402,11.0691,81.36,81.294,26.22816223]
[1770994884798,11.0705,81.35,81.294,26.22816223]
[1770994884997,25.06204584,81.38,81.294,26.22816223]
[1770994885702,25.06204584,81.409,81.315,26.22816223]
[1770994886013,11.0637,81.4,81.333,26.22816223]
[1770994886309,25.06204584,81.409,81.333,26.22816223]
[1770994886707,11.0653,81.388,81.333,26.22816223]
[1770994886901,25.06204584,81.409,81.333,26.22816223]
[1770994887804,11.065,81.391,81.333,37.30086223]
[1770994888307,25.06204584,81.39,81.311,26.22816223]
[1770994888809,11.067,81.376,81.312,26.22816223]
[1770994889305,25.06204584,81.375,81.281,26.22816223]
[1770994889494,25.06204584,81.398,81.307,26.22816223]
[1770994890504,11.0682,81.367,81.312,26.22816223]
[1770994891009,9.3300312,81.39,81.312,26.22816223]
[1770994891210,24.78543102,81.399,81.312,26.22816223]
[1770994891708,11.0657,81.385,81.33,11.0731]
[1770994891905,24.78543102,81.418,81.331,25.35568777]
[1770994892113,24.78543102,81.418,81.341,25.35568777]
[1770994892301,11.0635,81.402,81.351,11.0702]
[1770994892506,24.78543102,81.418,81.351,11.0702]
[1770994892710,24.78543102,81.418,81.352,25.35568777]
[1770994892908,24.78543102,81.418,81.34,9.3300312]
[1770994893109,24.78543102,81.418,81.341,25.35568777]
[1770994893508,11.0631,81.404,81.341,25.35568777]
[1770994893703,24.78543102,81.418,81.341,25.35568777]
[1770994894108,24.78543102,81.418,81.342,25.35568777]
[1770994894511,24.78543102,81.439,81.351,25.35568777]
[1770994894715,24.78543102,81.439,81.368,25.35568777]
[1770994894912,24.78543102,81.439,81.351,25.35568777]
[1770994895511,11.0617,81.415,81.359,25.35568777]
[1770994895713,24.78543102,81.439,81.359,25.35568777]
[1770994896007,24.78543102,81.439,81.371,25.35568777]
[1770994896213,11.0591,81.434,81.371,25.35568777]